bitfinex/quotes_SOLUSD_20260105
["timestamp","ask_amount","ask_price","bid_price","bid_amount"]
[1767617790847,7.51091925,134.92,134.89,0.69261146]
[1767617792887,10.46380808,134.92,134.89,0.69261146]
[1767617796182,23.8846207,134.93,134.89,0.69261146]
[1767617796358,0.099,134.92,134.89,0.69261146]
[1767617796689,24.51025515,134.93,134.89,0.69261146]
[1767617799684,24.51025515,134.93,134.87,10.36716164]
[1767617799685,0.099,134.92,134.87,10.36716164]
[1767617799858,0.099,134.92,134.88,0.70239942]
[1767617800901,23.8846207,134.93,134.85,0.70239942]
[1767617800902,3.05188883,134.89,134.85,0.70239942]
[1767617801794,7.41399762,134.88,134.85,0.70239942]
[1767617802583,10.36688645,134.88,134.85,0.70239942]
[1767617803467,4.21929438,134.89,134.86,0.70239942]
[1767617804289,4.21929438,134.89,134.87,0.70239942]
[1767617804679,4.21929438,134.89,134.86,7.41507722]
[1767617805195,7.17218321,134.89,134.86,7.41507722]
[1767617805403,7.17218321,134.89,134.85,7.41564701]
[1767617805801,2.64732825,134.89,134.86,2.95288883]
[1767617808183,2.64732825,134.89,134.87,2.95288883]
[1767617810195,2.64732825,134.89,134.85,25.95476454]
[1767617810498,0.69925783,134.94,134.88,2.95288883]
[1767617810806,0.69925783,134.94,134.9,2.95288883]
[1767617811600,0.69925783,134.94,134.9,10.36523978]
[1767617812999,0.70981278,134.95,134.91,2.95288883]
[1767617813203,14.22981278,134.97,134.93,2.95288883]
[1767617813503,0.70981278,134.97,134.93,2.95288883]
[1767617814007,0.70981278,134.97,134.93,10.36382176]
[1767617814379,0.70981278,134.97,134.94,2.95288883]
[1767617814775,0.70981278,134.98,134.94,2.95288883]
[1767617815197,0.70981278,134.98,134.95,2.95288883]
[1767617815430,0.70981278,134.99,134.95,2.95288883]
[1767617815909,0.70981278,134.99,134.96,7.40960284]
[1767617816289,0.70981278,134.99,134.96,9.63749167]
[1767617818305,24.58970611,135.01,134.97,0.72164001]
[1767617818495,0.70981278,135.0,134.97,0.72164001]
[1767617819092,0.70981278,135.02,134.98,0.72164001]
[1767617819304,0.70981278,135.03,134.99,3.67452884]
[1767617819505,0.70981278,135.03,134.99,0.72164001]
[1767617819815,0.70981278,135.02,134.98,3.67452884]
[1767617820189,0.70981278,135.02,134.99,3.67452884]
[1767617820387,0.70981278,135.02,134.99,7.40778]
[1767617820584,2.95288883,135.03,135.0,0.72164001]
[1767617821018,0.70642348,135.01,134.98,7.40833486]
[1767617821180,3.65931231,135.01,134.97,8.12032319]
[1767617821782,3.65931231,134.99,134.96,0.71162829]
[1767617821983,3.65931231,134.99,134.95,0.71162829]
[1767617821984,2.95288883,134.98,134.95,0.71162829]
[1767617822385,3.65931231,134.98,134.94,8.12232934]
[1767617824209,3.65931231,134.97,134.94,7.41070105]
[1767617824787,2.95288883,134.95,134.92,0.71162829]
[1767617824990,0.70642348,134.94,134.92,7.41146169]
[1767617827114,0.70642348,134.94,134.91,25.94287092]
[1767617828612,0.70642348,134.94,134.91,26.65449921]
[1767617829192,0.70642348,134.95,134.91,29.60738804]
[1767617830317,2.95288883,134.96,134.92,0.71162829]
[1767617830701,3.65931231,134.96,134.92,0.71162829]
[1767617833421,3.65931231,134.96,134.92,8.12326947]
[1767617833621,2.95288883,134.95,134.92,8.12326947]
[1767617834722,3.65931231,134.95,134.91,26.65449921]
[1767617835221,3.65931231,134.95,134.92,0.71162829]
[1767617836618,3.65931231,134.95,134.92,8.12316893]
[1767617838517,5.31830773,134.95,134.92,0.71162829]
[1767617842128,5.31830773,134.95,134.92,8.12341156]
[1767617842433,5.31830773,134.95,134.89,30.54499535]
[1767617842434,5.31830773,134.94,134.91,7.41201929]
[1767617842825,5.31830773,134.94,134.91,8.12364758]
[1767617843737,4.61188425,134.94,134.91,8.12364758]
[1767617844415,5.31830773,134.94,134.91,8.12364758]
[1767617848016,0.70642348,134.94,134.91,8.12364758]
[1767617849847,5.31830773,134.95,134.91,8.12364758]
[1767617850817,5.31830773,134.95,134.92,0.67894317]
[1767617852638,5.28097027,134.94,134.91,0.67894317]
[1767617852933,5.28097027,134.94,134.9,8.09184161]
[1767617854841,5.28097027,134.94,134.91,0.67894317]
[1767617857041,0.66908602,134.94,134.91,7.41221738]
[1767617857241,5.28097027,134.94,134.91,7.41221738]
[1767617857743,5.28097027,134.94,134.91,8.09116055]
[1767617857939,0.66908602,134.94,134.91,8.09116055]
[1767617858141,0.66908602,134.93,134.89,19.21203286]
[1767617858332,0.66908602,134.96,134.91,8.09124159]
[1767617858531,0.66908602,134.96,134.92,0.67894317]
[1767617858532,0.66908602,134.95,134.92,0.67894317]
[1767617859044,0.66908602,134.95,134.92,12.70216796]
[1767617859443,0.66908602,134.95,134.92,7.41134054]
[1767617860476,0.66908602,134.95,134.91,7.41206695]
[1767617860643,0.66908602,134.95,134.92,7.41176512]
[1767617866350,0.66908602,134.95,134.92,7.45782195]
[1767617867028,0.66908602,134.95,134.92,12.0697062]
[1767617867446,12.69030315,134.97,134.93,0.04605683]
[1767617867748,0.66908602,134.96,134.93,0.04605683]
[1767617867975,0.66908602,134.96,134.92,12.02364937]
[1767617868151,0.66908602,134.96,134.92,12.0697062]
[1767617871648,0.66908602,134.96,134.93,0.04605683]
[1767617871845,0.66908602,134.96,134.93,4.65794108]
[1767617874158,0.66908602,134.96,134.93,12.06870395]
[1767617875252,0.66908602,134.96,134.93,0.04605683]
[1767617879163,0.66908602,134.96,134.93,4.65794108]
[1767617879378,0.66908602,134.96,134.92,23.18744004]
[1767617879667,4.61188425,134.97,134.91,7.41234897]
[1767617879668,5.28828832,134.95,134.91,7.4584058]
[1767617879876,5.28828832,134.94,134.91,7.4584058]
[1767617880056,5.28828832,134.94,134.91,7.41234897]
[1767617880255,0.67640407,134.94,134.91,7.41234897]
[1767617880771,0.6892251,134.93,134.91,7.41234897]
[1767617880967,0.6892251,134.94,134.91,7.41234897]
[1767617881169,0.6892251,134.95,134.92,4.61188425]
[1767617881351,0.6892251,134.95,134.92,12.02342614]
[1767617881769,0.6892251,134.95,134.91,7.45815159]
[1767617881972,0.6892251,134.94,134.91,7.41209476]
[1767617883651,0.6892251,134.94,134.91,12.02397901]
[1767617884369,0.6892251,134.94,134.91,12.07003584]
[1767617884574,0.6892251,134.95,134.92,12.06953993]
[1767617885269,0.6892251,134.95,134.92,12.0234831]
[1767617886266,0.6892251,134.97,134.93,0.04605683]
[1767617886472,0.6892251,134.97,134.94,3.88688425]
[1767617886670,0.6892251,134.97,134.92,25.94109781]
[1767617886850,0.6892251,134.97,134.93,4.61188425]
[1767617887173,0.6892251,134.97,134.94,0.66213666]
[1767617887363,0.6892251,134.97,134.93,12.02267064]
[1767617892272,0.6892251,134.97,134.93,12.6848073]
[1767617892576,12.11940422,134.98,134.94,0.66213666]
[1767617893488,7.50751997,134.98,134.94,8.07282774]
[1767617893786,12.11940422,134.98,134.94,8.07282774]
[1767617894081,0.099,134.98,134.95,0.66213666]
[1767617894462,0.099,134.98,134.94,12.02257533]
[1767617894761,0.67314373,134.97,134.94,7.41069108]
[1767617895680,5.28502798,134.97,134.93,12.02287636]
[1767617895879,0.10474144,134.96,134.93,12.68501302]
[1767617897873,0.10474144,134.96,134.93,12.02287636]
[1767617898680,0.10474144,134.96,134.93,10.36162713]
[1767617900287,10.45823034,134.98,134.94,0.66213666]
[1767617900488,2.95063502,134.97,134.94,0.66213666]
[1767617901288,2.95063502,134.97,134.94,0.22201826]
[1767617901585,0.35209472,134.96,134.94,0.22201826]
[1767617901779,0.35209472,134.96,134.93,10.36162713]
[1767617902671,0.35209472,134.96,134.93,7.41099211]
[1767617903891,0.35209472,134.96,134.94,0.66213666]
[1767617904380,0.35209472,134.96,134.94,0.35444559]
[1767617904583,0.35209472,134.96,134.94,0.10829274]
[1767617905084,0.35209472,134.96,134.93,7.41099211]
[1767617906887,0.35209472,134.96,134.94,0.66213666]
[1767617908991,0.6892251,134.94,134.88,19.93754745]
[1767617909173,0.6892251,134.9,134.87,7.41426297]
[1767617909373,0.62922509,134.9,134.88,6.68884928]
[1767617909574,0.62922509,134.9,134.88,9.6394843]
[1767617910173,0.17526373,134.92,134.89,2.95063502]
[1767617910586,2.95063502,134.95,134.91,2.95063502]
[1767617910969,0.14021099,134.94,134.91,2.95063502]
[1767617911286,0.65598173,134.93,134.91,10.36275404]
[1767617911494,0.65598173,134.93,134.91,7.41211902]
[1767617911788,0.79619272,134.93,134.91,7.41211902]
[1767617911991,0.79619272,134.93,134.91,7.29995023]
[1767617912292,0.79619272,134.93,134.9,7.41289844]
[1767617912670,0.79619272,134.93,134.9,10.36353346]
[1767617912897,0.14021099,134.93,134.92,0.71309476]
[1767617913189,3.60661675,134.95,134.91,0.71309476]
[1767617913394,0.65598173,134.94,134.91,0.71309476]
[1767617913593,0.02938822,134.95,134.92,0.71309476]
[1767617913797,0.68536995,134.95,134.91,11.07572087]
[1767617913999,0.65598173,134.94,134.91,7.41199109]
[1767617914294,0.68536995,134.94,134.91,8.12508585]
[1767617914479,0.68536995,134.94,134.91,7.41199109]
[1767617914680,0.02938822,134.94,134.91,8.12508585]
[1767617914882,0.02938822,134.94,134.92,0.71309476]
[1767617915866,3.60661675,134.96,134.92,8.12488484]
[1767617916769,3.60661675,134.96,134.92,8.08701666]
[1767617916980,3.60661675,134.96,134.92,8.05672211]
[1767617917171,11.01634664,134.96,134.92,0.64493203]
[1767617917368,11.01634664,134.96,134.92,0.62069639]
[1767617918479,3.60661675,134.96,134.92,8.03235207]
[1767617918678,3.60661675,134.96,134.92,7.41165568]
[1767617919379,3.60661675,134.96,134.93,0.71309476]
[1767617919380,2.95063502,134.96,134.93,0.71309476]
[1767617920078,8.06525817,134.97,134.94,0.71309476]
[1767617920279,2.95063502,134.96,134.94,0.71309476]
[1767617925602,2.89063503,134.96,134.94,0.71309476]
[1767617931083,2.95063502,134.95,134.91,7.41213463]
[1767617932495,2.95063502,134.94,134.9,14.81263098]
[1767617932907,3.62107442,134.94,134.9,14.81263098]
[1767617933296,2.95063502,134.93,134.91,0.68502905]
[1767617933991,0.6704394,134.94,134.91,0.68502905]
[1767617933992,0.6704394,134.94,134.91,8.09734735]
[1767617934186,2.95063502,134.93,134.91,8.09734735]
[1767617937014,3.62107442,134.94,134.91,8.09734735]
[1767617938605,2.95063502,134.94,134.92,0.68502905]
[1767617938814,2.95063502,134.94,134.91,8.09734735]
[1767617941017,0.68703993,134.93,134.91,7.4123183]
[1767617941514,11.04858027,134.94,134.91,0.71331053]
[1767617941814,3.63767495,134.93,134.9,0.71331053]
[1767617942410,2.95063502,134.93,134.9,8.12616701]
[1767617945620,8.09794525,134.94,134.91,0.71331053]
[1767617945821,2.95063502,134.93,134.91,0.71331053]
[1767617951726,8.09794525,134.94,134.91,0.71331053]
[1767617951926,2.95063502,134.93,134.91,0.71331053]
[1767617952626,2.89063503,134.93,134.91,0.71331053]
[1767617956224,0.68703993,134.94,134.91,0.71331053]
[1767617956531,3.63767495,134.93,134.9,8.12616701]
[1767617958533,5.29990298,134.93,134.9,8.12616701]
[1767617959811,5.23990299,134.93,134.9,8.12616701]
[1767617965566,0.68703993,134.95,134.91,0.71331053]
[1767617965728,0.68703993,134.95,134.92,0.71331053]
[1767617965929,5.29990298,134.95,134.92,0.71331053]
[1767617966138,5.23990299,134.95,134.92,0.71331053]
[1767617967239,5.179903,134.95,134.92,0.71331053]
[1767617967927,5.179903,134.95,134.92,8.1248111]
[1767617973427,0.70479524,134.94,134.92,8.1248111]
[1767617973950,0.64479525,134.94,134.92,8.1248111]
[1767617974337,4.61286305,134.95,134.92,8.1248111]
[1767617975954,5.31765829,134.95,134.92,8.1248111]
[1767617977155,4.61286305,134.94,134.92,8.1248111]
[1767617978056,5.31765829,134.94,134.91,8.07309006]
[1767617978232,0.70479524,134.93,134.91,6.68709627]
[1767617978437,0.64479525,134.93,134.91,6.68709627]
[1767617984053,0.70479524,134.94,134.92,0.66099379]
[1767617984252,5.31765829,134.95,134.92,0.66099379]
[1767617988081,5.31765829,134.96,134.93,0.66099379]
[1767617989046,0.52878415,134.95,134.93,0.66099379]
[1767617989245,5.1416472,134.95,134.92,8.07277939]
[1767617995772,0.52878415,134.95,134.92,8.07277939]
[1767618000253,0.67063232,134.99,134.95,0.68493211]
[1767618000453,0.67063232,134.99,134.95,4.61286305]
[1767618000679,12.69149144,134.99,134.94,4.61286305]
[1767618001754,5.20594393,134.95,134.92,7.41148326]
[1767618001960,0.59384088,134.93,134.91,7.4121493]
[1767618002357,5.16247899,134.94,134.91,0.68868553]
[1767618002673,5.16247899,134.94,134.9,8.10131487]
[1767618002674,5.32497471,134.93,134.9,8.10131487]
[1767618002852,4.61286305,134.93,134.9,8.10131487]
[1767618003056,0.71211166,134.92,134.9,7.41262934]
[1767618003257,0.71211166,134.92,134.9,6.85582035]
[1767618004162,4.61286305,134.93,134.9,0.68868553]
[1767618005978,0.61211166,134.94,134.9,0.68868553]
[1767618006183,4.61286305,134.93,134.9,0.68868553]
[1767618006478,4.71186305,134.93,134.9,0.68868553]
[1767618006680,4.71186305,134.93,134.9,8.10149669]
[1767618007053,0.099,134.93,134.9,8.10149669]
[1767618007257,7.41041032,134.95,134.92,0.68868553]
[1767618007258,0.61211166,134.95,134.92,0.68868553]
[1767618007478,5.22497471,134.95,134.92,0.68868553]
[1767618007681,4.71186305,134.94,134.9,8.10149669]
[1767618007867,4.61286305,134.93,134.9,8.10149669]
[1767618009689,0.099,134.94,134.9,8.10149669]
[1767618009886,4.61286305,134.93,134.9,8.10149669]
[1767618010385,0.099,134.94,134.9,12.71435974]
[1767618010648,0.099,134.94,134.91,5.30154858]
[1767618011692,0.099,134.94,134.91,12.71383619]
[1767618012871,0.099,134.94,134.91,8.10097314]
[1767618013076,0.099,134.94,134.92,4.61286305]
[1767618013472,0.099,134.94,134.91,8.10097314]
[1767618019587,0.61211166,134.95,134.92,0.68868553]
[1767618019794,5.22497471,134.97,134.93,0.68868553]
[1767618020494,0.099,134.96,134.93,0.68868553]
[1767618021095,0.099,134.96,134.93,8.09970086]
[1767618023393,0.099,134.96,134.93,0.68868553]
[1767618024394,3.04974738,134.96,134.93,0.68868553]
[1767618024699,2.95074738,134.96,134.94,0.68868553]
[1767618025381,0.61211166,134.97,134.94,8.09916619]
[1767618027197,3.56285904,134.97,134.94,8.09916619]
[1767618029095,3.56285904,134.97,134.94,0.68868553]
[1767618032705,0.61211166,134.97,134.94,0.68868553]
[1767618032891,3.56285904,134.97,134.94,0.68868553]
[1767618034404,0.61211166,134.97,134.94,0.68868553]
[1767618034787,8.02131066,134.97,134.94,0.68868553]
[1767618034979,0.61211166,134.97,134.94,0.68868553]
[1767618036107,3.56285904,134.97,134.94,0.68868553]
[1767618036500,0.61211166,134.97,134.94,0.68868553]
[1767618036700,3.56285904,134.97,134.94,0.68868553]
[1767618038209,0.61211166,134.97,134.94,0.68868553]
[1767618038393,3.56285904,134.97,134.94,0.68868553]
[1767618039206,0.099,134.96,134.93,8.07259436]
[1767618039502,3.05482718,134.94,134.91,0.66158728]
[1767618039703,0.1040798,134.94,134.91,0.66158728]
[1767618039887,0.61211166,134.96,134.93,0.66158728]
[1767618040990,3.56285904,134.96,134.93,0.66158728]
[1767618044505,3.56285904,134.96,134.93,8.07277994]
[1767618045005,3.04974738,134.97,134.94,0.66158728]
[1767618049412,8.35013837,135.03,134.95,0.66158728]
[1767618049617,7.40466493,135.05,134.95,13.52]
[1767618049919,3.04974738,135.0,134.96,11.89800329]
[1767618050092,3.58210489,134.97,134.93,13.52]
[1767618050414,2.95074738,134.95,134.91,13.52]
[1767618050711,13.52,135.01,134.93,7.41115554]
[1767618050712,2.95074738,134.96,134.93,7.41115554]
[1767618051111,3.59285904,134.98,134.94,7.41045533]
[1767618051301,2.95074738,134.98,134.94,7.41045533]
[1767618051494,2.95074738,134.98,134.94,0.66158728]
[1767618052816,2.95074738,134.97,134.94,0.66158728]
[1767618053386,2.95074738,134.95,134.94,0.66158728]
[1767618053603,0.1096466,134.94,134.91,7.41202366]
[1767618053914,2.95074738,134.94,134.91,8.07580109]
[1767618054304,2.95074738,134.94,134.92,0.66377743]
[1767618054607,2.95074738,134.93,134.91,7.41234882]
[1767618055014,0.65934502,134.94,134.91,7.41234882]
[1767618055206,2.95074738,134.93,134.91,7.41234882]
[1767618056605,2.95074738,134.93,134.91,8.07612625]
[1767618057009,0.65934502,134.91,134.88,8.07738677]
[1767618057207,2.95074738,134.91,134.89,0.66377743]
[1767618058121,0.65934502,134.92,134.89,0.66377743]
[1767618058122,3.6100924,134.92,134.89,0.66377743]
[1767618058725,3.6100924,134.92,134.89,8.0770508]
[1767618059225,0.65934502,134.92,134.89,8.0770508]
[1767618059520,3.6100924,134.92,134.89,8.0770508]
[1767618060322,0.65934502,134.92,134.89,8.0770508]
[1767618060525,3.6100924,134.92,134.89,8.0770508]
[1767618061220,3.6100924,134.92,134.89,0.66377743]
[1767618061421,3.60348918,134.9,134.87,0.65635489]
[1767618061726,3.60348918,134.91,134.88,0.65635489]
[1767618062432,0.6527418,134.91,134.88,0.65635489]
[1767618062607,3.60348918,134.91,134.88,0.65635489]
[1767618063107,3.54348919,134.91,134.88,0.65635489]
[1767618064309,0.59274181,134.91,134.88,0.65635489]
[1767618064633,2.95074738,134.94,134.9,0.65635489]
[1767618065015,3.60348918,134.93,134.9,0.65635489]
[1767618065416,0.6527418,134.93,134.9,0.65635489]
[1767618065730,3.60348918,134.93,134.9,0.65635489]
[1767618066126,0.6527418,134.93,134.9,0.65635489]
[1767618066423,3.60348918,134.93,134.9,0.65635489]
[1767618068808,0.6527418,134.95,134.91,0.65635489]
[1767618069013,3.60348918,134.95,134.91,0.65635489]
[1767618070029,0.6527418,134.96,134.93,0.65635489]
[1767618070423,17.12348918,134.97,134.93,0.65635489]
[1767618070615,3.60348918,134.97,134.93,0.65635489]
[1767618071034,3.60348918,134.97,134.93,8.0672262]
[1767618072428,0.6527418,134.96,134.93,8.0672262]
[1767618072734,0.6527418,134.96,134.93,7.41087131]
[1767618076630,0.6527418,134.96,134.92,7.41159953]
[1767618076934,0.6527418,134.96,134.92,10.36234691]
[1767618078234,0.6527418,134.96,134.93,0.65635489]
[1767618078534,8.06254915,134.96,134.92,10.36250035]
[1767618078837,11.01329653,134.96,134.92,8.06810786]
[1767618079018,0.6527418,134.95,134.92,8.06810786]
[1767618079219,11.01329653,134.96,134.92,8.06810786]
[1767618079432,3.60348918,134.96,134.92,8.06810786]
[1767618080635,3.60348918,134.96,134.89,0.74134479]
[1767618080636,0.6527418,134.92,134.89,0.74134479]
[1767618080814,0.6527418,134.89,134.85,7.41564701]
[1767618081018,0.6527418,134.88,134.85,7.41564701]
[1767618081218,5.26344276,134.89,134.85,8.0720019]
[1767618081948,5.26344276,134.89,134.85,26.61111943]
[1767618082314,5.26344276,134.87,134.84,7.41612961]
[1767618082519,5.26344276,134.86,134.83,7.41642192]
[1767618083842,4.61070096,134.85,134.83,7.41642192]
[1767618084035,5.26344276,134.86,134.83,7.41642192]
[1767618084221,5.26344276,134.86,134.83,8.07277681]
[1767618084819,4.61070096,134.86,134.84,0.65635489]
[1767618085745,8.06680679,134.88,134.84,0.65635489]
[1767618085940,4.61070096,134.85,134.84,0.65635489]
[1767618088022,4.61070096,134.85,134.83,0.65635489]
[1767618088331,4.6507024,134.85,134.81,14.27635489]
[1767618088746,4.6507024,134.85,134.81,0.75635489]
[1767618089348,4.61070096,134.84,134.82,8.07335579]
[1767618090943,0.04000144,134.85,134.82,8.07335579]
[1767618091145,4.61070096,134.84,134.82,8.07335579]
[1767618091924,4.56068015,134.84,134.82,8.07335579]
[1767618093040,4.56068015,134.84,134.81,8.23429444]
[1767618093231,5.21907966,134.84,134.81,8.23429444]
[1767618093841,4.56068015,134.84,134.81,8.23429444]
[1767618094245,4.61070096,134.85,134.82,0.71651586]
[1767618094444,5.26910047,134.86,134.82,0.71651586]
[1767618095951,5.26910047,134.86,134.82,8.13347685]
[1767618100683,0.65839951,134.86,134.82,8.13347685]
[1767618101659,0.65839951,134.85,134.82,8.13347685]
[1767618102767,4.61070096,134.86,134.83,0.71651586]
[1767618103440,5.26910047,134.88,134.84,0.71651586]
[1767618104530,0.65839951,134.87,134.84,0.71651586]
[1767618104959,5.26910047,134.86,134.82,8.13356238]
[1767618106152,5.26910047,134.86,134.83,0.71651586]
[1767618107466,0.65839951,134.86,134.83,0.71651586]
[1767618108760,0.65839951,134.86,134.83,8.13324675]
[1767618113865,0.65839951,134.86,134.83,0.71651586]
[1767618114949,0.65839951,134.86,134.83,8.13317615]
[1767618116266,0.6865151,134.88,134.84,0.69758693]
[1767618116968,0.6865151,134.88,134.85,0.69758693]
[1767618118268,0.6865151,134.89,134.86,0.69758693]
[1767618118874,0.6865151,134.91,134.87,0.69758693]
[1767618120074,0.6865151,134.91,134.88,8.11158455]
[1767618120453,0.6865151,134.91,134.88,6.75462362]
[1767618120755,4.61070096,134.9,134.86,8.11516054]
[1767618121148,5.19721606,134.9,134.86,0.7004036]
[1767618121349,4.61070096,134.88,134.85,8.11586206]
[1767618121546,4.70970096,134.89,134.85,8.11586206]
[1767618121870,0.58163994,134.88,134.86,7.31020785]
[1767618125373,0.58163994,134.88,134.85,8.11587192]
[1767618126072,0.58163994,134.88,134.84,26.24724451]
[1767618126255,0.58163994,134.88,134.84,8.11654355]
[1767618127162,0.48163994,134.87,134.84,7.41613995]
[1767618127550,4.61070096,134.88,134.85,0.7004036]
[1767618130154,4.61070096,134.88,134.85,8.11600714]
[1767618130960,12.50588367,134.89,134.85,8.11600714]
[1767618132683,4.61070096,134.88,134.85,0.7004036]
[1767618133963,4.70970096,134.88,134.85,0.7004036]
[1767618135389,4.70970096,134.88,134.85,8.11595823]
[1767618135591,0.099,134.89,134.86,0.7004036]
[1767618135764,4.70970096,134.89,134.86,0.7004036]
[1767618139079,4.61070096,134.89,134.86,0.7004036]
[1767618140174,4.70970096,134.89,134.86,0.7004036]
[1767618140376,4.61070096,134.89,134.86,0.7004036]
[1767618142493,2.95407465,134.89,134.86,0.7004036]
[1767618142700,10.36752755,134.89,134.86,0.7004036]
[1767618147106,7.89467423,134.9,134.87,0.7004036]
[1767618147281,2.95407465,134.89,134.87,0.7004036]
[1767618147481,7.89467423,134.9,134.87,0.7004036]
[1767618147702,2.95407465,134.89,134.87,0.7004036]
[1767618150802,2.95407465,134.88,134.86,0.69112413]
[1767618151889,0.10278813,134.87,134.84,8.1070947]
[1767618152095,0.099,134.87,134.84,7.41597057]
[1767618152407,0.099,134.87,134.84,8.1070947]
[1767618153900,3.05307465,134.87,134.83,29.02758295]
[1767618154206,3.05307465,134.87,134.83,21.62758295]
[1767618157619,2.95407465,134.87,134.84,0.69112413]
[1767618159790,10.46773908,134.87,134.84,0.69112413]
[1767618160097,2.95407465,134.86,134.83,0.69112413]
[1767618160411,10.85037902,134.87,134.83,0.69112413]
[1767618160598,2.95407465,134.86,134.83,0.69112413]
[1767618161213,2.95407465,134.85,134.83,0.69112413]
[1767618163815,2.95407465,134.86,134.83,0.69112413]
[1767618164013,3.43188819,134.87,134.84,0.69112413]
[1767618164216,2.95407465,134.86,134.84,0.69112413]
[1767618165620,2.89407466,134.86,134.84,0.69112413]
[1767618166416,7.89600567,134.88,134.84,0.69112413]
[1767618166617,2.95407465,134.89,134.85,0.69112413]
[1767618166791,2.95407465,134.88,134.85,0.69112413]
[1767618166989,2.95407465,134.87,134.85,0.69112413]
[1767618169118,2.95407465,134.86,134.83,0.69112413]
[1767618171722,10.36923846,134.86,134.83,0.69112413]
[1767618171919,0.47038766,134.84,134.81,0.79335586]
[1767618172111,3.0367059,134.83,134.81,0.1]
[1767618172298,3.0317229,134.83,134.81,0.1]
[1767618173506,7.41618392,134.85,134.81,0.79335586]
[1767618173711,2.95407465,134.83,134.81,0.79335586]
[1767618174013,2.95407465,134.83,134.81,0.1]
[1767618174218,2.95407465,134.85,134.81,0.79335586]
[1767618174599,3.05307465,134.85,134.81,0.79335586]
[1767618175426,10.46879001,134.85,134.81,0.79335586]
[1767618178706,2.95407465,134.84,134.81,0.79335586]
[1767618180009,2.95407465,134.82,134.81,0.1]
[1767618180209,2.89407466,134.82,134.81,0.1]
[1767618180610,2.89407466,134.82,134.79,7.51867374]
[1767618181029,0.24914844,134.81,134.79,7.51867374]
[1767618181342,0.18914845,134.81,134.79,7.51867374]
[1767618181639,2.89407466,134.82,134.79,7.51867374]
[1767618181640,2.95407465,134.82,134.79,8.2159303]
[1767618181840,2.95407465,134.81,134.79,0.79725656]
[1767618182006,0.30205216,134.8,134.77,0.1]
[1767618182206,2.95407465,134.79,134.77,0.1]
[1767618184128,0.68130181,134.81,134.77,8.21710792]
[1767618184333,2.95407465,134.8,134.78,0.69725656]
[1767618187826,3.63537646,134.81,134.78,0.69725656]
[1767618190418,2.95407465,134.8,134.78,0.69725656]
[1767618191014,2.95407465,134.79,134.78,0.69725656]
[1767618191520,2.95407465,134.8,134.78,0.69725656]
[1767618192022,0.68130181,134.82,134.79,0.69725656]
[1767618192223,0.30580673,134.79,134.77,0.1]
[1767618192422,3.52886694,134.78,134.76,0.1]
[1767618192638,2.95407465,134.77,134.76,0.1]
[1767618193130,2.95407465,134.77,134.74,0.69725656]
[1767618193509,2.95407465,134.77,134.74,8.11895145]
[1767618195617,2.95407465,134.78,134.75,0.69725656]
[1767618195824,3.15712681,134.79,134.75,0.69725656]
[1767618196016,0.20305216,134.79,134.75,0.69725656]
[1767618196217,3.15712681,134.79,134.75,0.69725656]
[1767618197037,3.63537646,134.8,134.76,0.69725656]
[1767618197639,0.68130181,134.8,134.76,0.69725656]
[1767618199035,3.63537646,134.79,134.76,0.69725656]
[1767618200236,2.95407465,134.78,134.76,0.69725656]
[1767618200428,2.95407465,134.79,134.76,0.69725656]
[1767618200826,3.15712681,134.79,134.76,0.69725656]
[1767618202642,4.82613406,134.79,134.76,0.69725656]
[1767618203648,0.20305216,134.82,134.77,0.69725656]
[1767618203852,4.6230819,134.81,134.77,0.69725656]
[1767618204022,0.67651932,134.81,134.77,0.69725656]
[1767618204218,5.29960122,134.81,134.77,0.69725656]
[1767618204527,5.30438371,134.82,134.78,0.69725656]
[1767618204750,12.7218453,134.82,134.78,0.69725656]
[1767618204924,26.2413069,134.83,134.79,0.69725656]
[1767618205119,0.20305216,134.82,134.79,0.69725656]
[1767618205332,12.7213069,134.83,134.79,0.69725656]
[1767618205549,22.7165144,134.84,134.8,0.69725656]
[1767618205766,27.3395963,134.84,134.8,0.69725656]
[1767618206746,15.30005218,134.84,134.8,0.69725656]
[1767618206948,15.30005218,134.84,134.81,0.69725656]
[1767618207145,19.92313408,134.84,134.81,0.69725656]
[1767618207549,27.33934869,134.84,134.81,0.69725656]
[1767618207734,19.92313408,134.84,134.81,0.69725656]
[1767618208330,27.33936246,134.84,134.81,0.69725656]
[1767618208531,27.33936246,134.84,134.8,0.69725656]
[1767618208840,19.92313408,134.84,134.8,8.11560835]
[1767618209040,15.09700002,134.84,134.81,0.69725656]
[1767618210459,27.33943954,134.84,134.81,0.69725656]
[1767618210765,12.71645063,134.83,134.8,0.69725656]
[1767618211926,8.09336873,134.83,134.8,0.69725656]
[1767618212131,12.71645063,134.83,134.8,0.69725656]
[1767618213848,8.09336873,134.83,134.8,0.69725656]
[1767618214146,12.71645063,134.83,134.8,0.69725656]
[1767618215538,0.67651932,134.83,134.8,0.69725656]
[1767618215736,27.84338938,134.84,134.8,0.69725656]
[1767618215937,0.17778049,134.83,134.8,0.69725656]
[1767618216339,26.26638936,134.84,134.8,0.69725656]
[1767618217853,21.64330746,134.84,134.8,0.69725656]
[1767618218054,26.26638936,134.84,134.8,0.69725656]